fUSD/lending_fUSD_20260503
["ID","MTS","AMOUNT","RATE_DAILY","PERIOD"]
[421470483,1777738258000,-500.0,0.00032438,2]
[421470470,1777738258000,-662.84,0.00032438,2]
[421470493,1777738258000,-500.0,0.00032438,2]
[421470472,1777738258000,-500.0,0.00032438,2]
[421470450,1777738258000,-500.0,0.00032438,2]
[421470452,1777738258000,-5151.24,0.00032438,2]
[421470453,1777738258000,-443.25456765,0.00032438,2]
[421470451,1777738258000,-500.0,0.00032438,2]
[421470455,1777738258000,-203.38057368,0.00032438,2]
[421470454,1777738258000,-500.0,0.00032438,2]
[421470456,1777738258000,-948.77,0.00032438,2]
[421470457,1777738258000,-627.62,0.00032438,2]
[421470458,1777738258000,-500.0,0.00032438,2]
[421470471,1777738258000,-500.0,0.00032438,2]
[421470463,1777738258000,-500.0,0.00032438,2]
[421470461,1777738258000,-500.0,0.00032438,2]
[421470460,1777738258000,-705.16,0.00032438,2]
[421470459,1777738258000,-500.0,0.00032438,2]
[421470465,1777738258000,-1216.39,0.00032438,2]
[421470468,1777738258000,-852.88,0.00032438,2]
[421470464,1777738258000,-500.0,0.00032438,2]
[421470466,1777738258000,-500.0,0.00032438,2]
[421470467,1777738258000,-500.0,0.00032438,2]
[421470469,1777738258000,-578.95,0.00032438,2]
[421470462,1777738258000,-955.49,0.00032438,2]
[421470494,1777738258000,-712.57,0.00032438,2]
[421470511,1777738258000,-500.0,0.00032493,2]
[421470496,1777738258000,-335.11241243,0.00032438,2]
[421470519,1777738258000,-500.0,0.00032493,2]
[421470521,1777738258000,-620.55,0.00032493,2]
[421470522,1777738258000,-500.0,0.00032493,2]
[421470520,1777738258000,-500.0,0.00032493,2]
[421470527,1777738258000,-500.0,0.00032493,2]
[421470536,1777738258000,-500.0,0.00032493,2]
[421470525,1777738258000,-500.0,0.00032493,2]
[421470529,1777738258000,-500.0,0.00032493,2]
[421470526,1777738258000,-733.4,0.00032493,2]
[421470523,1777738258000,-500.0,0.00032493,2]
[421470528,1777738258000,-500.0,0.00032493,2]
[421470532,1777738258000,-740.61,0.00032493,2]
[421470533,1777738258000,-797.0,0.00032493,2]
[421470530,1777738258000,-500.0,0.00032493,2]
[421470534,1777738258000,-500.0,0.00032493,2]
[421470495,1777738258000,-636.6784873,0.00032438,2]
[421470537,1777738258000,-678.03,0.00032493,2]
[421470539,1777738258000,-500.0,0.00032493,2]
[421470538,1777738258000,-500.0,0.00032493,2]
[421470541,1777738258000,-950.75,0.00032493,2]
[421470531,1777738258000,-212.86891147,0.00032493,2]
[421470518,1777738258000,-500.0,0.00032493,2]
[421470535,1777738258000,-865.8,0.00032493,2]
[421470515,1777738258000,-500.0,0.00032493,2]
[421470524,1777738258000,-500.0,0.00032493,2]
[421470498,1777738258000,-500.0,0.00032438,2]
[421470497,1777738258000,-500.0,0.00032438,2]
[421470499,1777738258000,-500.0,0.00032438,2]
[421470501,1777738258000,-500.0,0.00032438,2]
[421470503,1777738258000,-606.18239602,0.00032492,2]
[421470505,1777738258000,-606.18239602,0.00032492,2]
[421470502,1777738258000,-500.0,0.00032438,2]
[421470504,1777738258000,-606.18239602,0.00032492,2]
[421470508,1777738258000,-606.18239602,0.00032492,2]
[421470500,1777738258000,-500.0,0.00032438,2]
[421470512,1777738258000,-500.0,0.00032493,2]
[421470540,1777738258000,-572.34,0.00032493,2]
[421470517,1777738258000,-500.0,0.00032493,2]
[421470513,1777738258000,-500.0,0.00032493,2]
[421470516,1777738258000,-500.0,0.00032493,2]
[421470509,1777738258000,-606.18239602,0.00032492,2]
[421470510,1777738258000,-606.18239602,0.00032492,2]
[421470506,1777738258000,-606.18239602,0.00032492,2]
[421470507,1777738258000,-606.18239602,0.00032492,2]
[421470514,1777738258000,-736.97,0.00032493,2]
[421470560,1777738259000,-523.44,0.00032493,2]
[421470563,1777738259000,-500.0,0.00032493,2]
[421470564,1777738259000,-441.95377506,0.00032493,2]
[421470566,1777738259000,-500.0,0.00032493,2]
[421470569,1777738259000,-500.0,0.00032493,2]
[421470570,1777738259000,-812.98,0.00032493,2]
[421470562,1777738259000,-500.0,0.00032493,2]
[421470572,1777738259000,-658.51,0.00032493,2]
[421470567,1777738259000,-500.0,0.00032493,2]
[421470568,1777738259000,-724.96,0.00032493,2]
[421470574,1777738259000,-500.0,0.00032493,2]
[421470579,1777738259000,-684.42,0.00032493,2]
[421470577,1777738259000,-666.15,0.00032493,2]
[421470571,1777738259000,-635.28,0.00032493,2]
[421470565,1777738259000,-500.0,0.00032493,2]
[421470561,1777738259000,-504.14,0.00032493,2]
[421470550,1777738259000,-523.64,0.00032493,2]
[421470557,1777738259000,-519.12,0.00032493,2]
[421470544,1777738259000,-500.0,0.00032493,2]
[421470545,1777738259000,-500.0,0.00032493,2]
[421470542,1777738259000,-500.0,0.00032493,2]
[421470543,1777738259000,-5967.71,0.00032493,2]
[421470547,1777738259000,-500.0,0.00032493,2]
[421470546,1777738259000,-647.22,0.00032493,2]
[421470549,1777738259000,-500.0,0.00032493,2]
[421470548,1777738259000,-500.0,0.00032493,2]
[421470553,1777738259000,-500.0,0.00032493,2]
[421470559,1777738259000,-1111.98,0.00032493,2]
[421470551,1777738259000,-775.96,0.00032493,2]
[421470554,1777738259000,-884.79,0.00032493,2]
[421470552,1777738259000,-500.0,0.00032493,2]
[421470558,1777738259000,-500.0,0.00032493,2]
[421470555,1777738259000,-500.0,0.00032493,2]
[421470556,1777738259000,-500.0,0.00032493,2]
[421470578,1777738259000,-416.541072,0.00032493,7]
[421470575,1777738259000,-416.541072,0.00032493,7]
[421470573,1777738259000,-416.541072,0.00032493,7]
[421470608,1777738259000,-537.0,0.00032493,2]
[421470606,1777738259000,-500.0,0.00032493,2]
[421470600,1777738259000,-500.0,0.00032493,2]
[421470607,1777738259000,-920.07,0.00032493,2]
[421470602,1777738259000,-500.0,0.00032493,2]
[421470597,1777738259000,-500.0,0.00032493,2]
[421470601,1777738259000,-500.0,0.00032493,2]
[421470603,1777738259000,-500.0,0.00032493,2]
[421470599,1777738259000,-500.0,0.00032493,2]
[421470605,1777738259000,-500.0,0.00032493,2]
[421470613,1777738259000,-1172.5728286,0.00032493,2]
[421470610,1777738259000,-500.0,0.00032493,2]
[421470611,1777738259000,-880.44,0.00032493,2]
[421470612,1777738259000,-1197.94,0.00032493,2]
[421470576,1777738259000,-416.541072,0.00032493,7]
[421470609,1777738259000,-3599.4,0.00032493,2]
[421470598,1777738259000,-500.0,0.00032493,2]
[421470604,1777738259000,-4576.64,0.00032493,2]
[421470595,1777738259000,-806.17,0.00032493,2]
[421470580,1777738259000,-500.0,0.00032493,2]
[421470594,1777738259000,-500.0,0.00032493,2]
[421470584,1777738259000,-500.0,0.00032493,2]
[421470581,1777738259000,-500.0,0.00032493,2]
[421470583,1777738259000,-500.0,0.00032493,2]
[421470589,1777738259000,-500.0,0.00032493,2]
[421470596,1777738259000,-2792.04,0.00032493,2]
[421470582,1777738259000,-500.0,0.00032493,2]
[421470585,1777738259000,-800.92,0.00032493,2]
[421470588,1777738259000,-500.0,0.00032493,2]
[421470586,1777738259000,-753.28,0.00032493,2]
[421470592,1777738259000,-36411.49,0.00032493,2]
[421470590,1777738259000,-500.0,0.00032493,2]
[421470593,1777738259000,-728.83,0.00032493,2]
[421470587,1777738259000,-500.0,0.00032493,2]
[421470591,1777738259000,-500.0,0.00032493,2]
[421470655,1777738260000,-500.0,0.00032493,2]
[421470647,1777738260000,-500.0,0.00032493,2]
[421470654,1777738260000,-500.0,0.00032493,2]
[421470637,1777738260000,-500.0,0.00032493,2]
[421470638,1777738260000,-500.0,0.00032493,2]
[421470635,1777738260000,-500.0,0.00032493,2]
[421470646,1777738260000,-500.0,0.00032493,2]
[421470632,1777738260000,-500.0,0.00032493,2]
[421470644,1777738260000,-500.0,0.00032493,2]
[421470645,1777738260000,-500.0,0.00032493,2]
[421470656,1777738260000,-500.0,0.00032493,2]
[421470649,1777738260000,-693.96,0.00032493,2]
[421470653,1777738260000,-412.25679655,0.00032493,2]
[421470650,1777738260000,-500.0,0.00032493,2]
[421470651,1777738260000,-901.46,0.00032493,2]
[421470648,1777738260000,-12694.74,0.00032493,2]
[421470652,1777738260000,-500.0,0.00032493,2]
[421470658,1777738260000,-1599.33,0.00032493,2]
[421470661,1777738260000,-500.0,0.00032493,2]
[421470657,1777738260000,-500.0,0.00032493,2]
[421470642,1777738260000,-2059.86,0.00032493,2]
[421470643,1777738260000,-500.0,0.00032493,2]
[421470636,1777738260000,-185.69808772,0.00032493,2]
[421470617,1777738260000,-500.0,0.00032438,2]
[421470633,1777738260000,-500.0,0.00032493,2]
[421470667,1777738260000,-578.54,0.00032493,2]
[421470616,1777738260000,-421.568875,0.00032493,2]
[421470614,1777738260000,-500.0,0.00032328,2]
[421470615,1777738260000,-500.0,0.00032383,2]
[421470618,1777738260000,-7202.32417744,0.00032493,2]
[421470619,1777738260000,-2345.17,0.00032493,2]
[421470625,1777738260000,-500.0,0.00032493,2]
[421470621,1777738260000,-666.56268591,0.00032493,2]
[421470623,1777738260000,-4981.45006065,0.00032493,2]
[421470622,1777738260000,-2347.35,0.00032493,2]
[421470624,1777738260000,-500.0,0.00032493,2]
[421470629,1777738260000,-500.0,0.00032493,2]
[421470620,1777738260000,-839.4513724,0.00032493,2]
[421470626,1777738260000,-626.35388389,0.00032493,2]
[421470627,1777738260000,-500.0,0.00032493,2]
[421470628,1777738260000,-500.0,0.00032493,2]
[421470631,1777738260000,-500.0,0.00032493,2]
[421470630,1777738260000,-500.0,0.00032493,2]
[421470641,1777738260000,-500.0,0.00032493,2]
[421470639,1777738260000,-500.0,0.00032493,2]
[421470634,1777738260000,-500.0,0.00032493,2]
[421470640,1777738260000,-500.0,0.00032493,2]
[421470659,1777738260000,-500.0,0.00032493,2]
[421470660,1777738260000,-500.0,0.00032493,2]
[421470703,1777738260000,-484.66593909,0.00032493,2]
[421470687,1777738260000,-732.98,0.00032493,2]
[421470690,1777738260000,-3387.89,0.00032493,2]
[421470691,1777738260000,-378.0086355,0.00032493,2]
[421470689,1777738260000,-2298.37,0.00032493,2]
[421470705,1777738260000,-500.0,0.00032493,2]
[421470695,1777738260000,-830.29,0.00032493,2]
[421470694,1777738260000,-500.0,0.00032493,2]
[421470697,1777738260000,-500.0,0.00032493,2]
[421470707,1777738260000,-688.56,0.00032493,2]
[421470698,1777738260000,-500.0,0.00032493,2]
[421470699,1777738260000,-560.99721223,0.00032493,2]
[421470700,1777738260000,-500.0,0.00032493,2]
[421470702,1777738260000,-500.0,0.00032493,2]
[421470706,1777738260000,-500.0,0.00032493,2]
[421470701,1777738260000,-500.0,0.00032493,2]
[421470704,1777738260000,-500.0,0.00032493,2]
[421470708,1777738260000,-500.0,0.00032493,2]
[421470709,1777738260000,-500.0,0.00032493,2]
[421470710,1777738260000,-772.17,0.00032493,2]
[421470662,1777738260000,-500.0,0.00032493,2]
[421470711,1777738260000,-500.0,0.00032493,2]
[421470688,1777738260000,-500.0,0.00032493,2]
[421470686,1777738260000,-500.0,0.00032493,2]
[421470696,1777738260000,-500.0,0.00032493,2]
[421470693,1777738260000,-500.0,0.00032493,2]
[421470663,1777738260000,-500.0,0.00032493,2]
[421470665,1777738260000,-902.13,0.00032493,2]
[421470664,1777738260000,-500.0,0.00032493,2]
[421470666,1777738260000,-603.63,0.00032493,2]
[421470669,1777738260000,-500.0,0.00032493,2]
[421470679,1777738260000,-500.0,0.00032493,2]
[421470685,1777738260000,-500.0,0.00032493,2]
[421470671,1777738260000,-482.56987887,0.00032493,2]
[421470668,1777738260000,-500.0,0.00032493,2]
[421470670,1777738260000,-500.0,0.00032493,2]
[421470676,1777738260000,-801.36,0.00032493,2]
[421470680,1777738260000,-500.0,0.00032493,2]
[421470672,1777738260000,-500.0,0.00032493,2]
[421470677,1777738260000,-500.0,0.00032493,2]
[421470673,1777738260000,-593.71840482,0.00032493,2]
[421470674,1777738260000,-500.0,0.00032493,2]
[421470678,1777738260000,-500.0,0.00032493,2]
[421470692,1777738260000,-643.32,0.00032493,2]
[421470681,1777738260000,-500.0,0.00032493,2]
[421470683,1777738260000,-500.0,0.00032493,2]
[421470684,1777738260000,-500.0,0.00032493,2]
[421470682,1777738260000,-500.0,0.00032493,2]
[421470675,1777738260000,-500.0,0.00032493,2]
[421470746,1777738261000,-500.0,0.00032493,2]
[421470748,1777738261000,-500.0,0.00032493,2]
[421470751,1777738261000,-500.0,0.00032493,2]
[421470753,1777738261000,-3171.81,0.00032493,2]
[421470754,1777738261000,-500.0,0.00032493,2]
[421470757,1777738261000,-500.0,0.00032493,2]
[421470749,1777738261000,-500.0,0.00032493,2]
[421470750,1777738261000,-257.88229673,0.00032493,2]
[421470752,1777738261000,-500.0,0.00032493,2]
[421470747,1777738261000,-764.18,0.00032493,2]
[421470755,1777738261000,-500.0,0.00032493,2]
[421470742,1777738261000,-701.38,0.00032493,2]
[421470756,1777738261000,-500.0,0.00032493,2]
[421470758,1777738261000,-500.0,0.00032493,2]
[421470731,1777738261000,-562.08264794,0.00032493,2]
[421470764,1777738261000,-627.62,0.00032493,2]
[421470770,1777738261000,-500.0,0.00032493,2]
[421470771,1777738261000,-500.0,0.00032493,2]
[421470759,1777738261000,-500.0,0.00032493,2]
[421470762,1777738261000,-500.0,0.00032493,2]
[421470769,1777738261000,-955.49,0.00032493,2]
[421470765,1777738261000,-500.0,0.00032493,2]
[421470760,1777738261000,-500.0,0.00032493,2]
[421470763,1777738261000,-948.77,0.00032493,2]
[421470767,1777738261000,-705.16,0.00032493,2]
[421470768,1777738261000,-473.37977568,0.00032493,2]
[421470781,1777738261000,-500.0,0.00032493,2]
[421470743,1777738261000,-500.0,0.00032493,2]
[421470766,1777738261000,-500.0,0.00032493,2]
[421470740,1777738261000,-540.43928614,0.00032493,2]
[421470718,1777738261000,-800.53,0.00032493,2]
[421470738,1777738261000,-500.0,0.00032493,2]
[421470719,1777738261000,-500.0,0.00032493,2]
[421470714,1777738261000,-519.59,0.00032493,2]
[421470717,1777738261000,-500.0,0.00032493,2]
[421470712,1777738261000,-500.0,0.00032493,2]
[421470716,1777738261000,-500.0,0.00032493,2]
[421470713,1777738261000,-500.0,0.00032493,2]
[421470783,1777738261000,-685.03,0.00032493,2]
[421470715,1777738261000,-500.0,0.00032493,2]
[421470721,1777738261000,-500.0,0.00032493,2]
[421470732,1777738261000,-613.49,0.00032493,2]
[421470722,1777738261000,-699.76,0.00032493,2]
[421470729,1777738261000,-776.41,0.00032493,2]
[421470726,1777738261000,-500.0,0.00032493,2]
[421470737,1777738261000,-926.86,0.00032493,2]
[421470720,1777738261000,-2511.16,0.00032493,2]
[421470724,1777738261000,-500.0,0.00032493,2]
[421470728,1777738261000,-867.68,0.00032493,2]
[421470725,1777738261000,-500.0,0.00032493,2]
[421470727,1777738261000,-500.0,0.00032493,2]
[421470730,1777738261000,-520.28,0.00032493,2]
[421470733,1777738261000,-500.0,0.00032493,2]
[421470741,1777738261000,-500.0,0.00032493,2]
[421470739,1777738261000,-500.0,0.00032493,2]
[421470744,1777738261000,-616.49,0.00032493,2]
[421470734,1777738261000,-454.6773598,0.00032493,2]
[421470736,1777738261000,-500.0,0.00032493,2]
[421470745,1777738261000,-500.0,0.00032493,2]
[421470735,1777738261000,-202.21576393,0.00032493,2]
[421470723,1777738261000,-453.14685064,0.00032493,2]
[421470776,1777738261000,-578.95,0.00032493,2]
[421470761,1777738261000,-5151.24,0.00032493,2]
[421470772,1777738261000,-1216.39,0.00032493,2]
[421470809,1777738261000,-606.18239602,0.00032546,2]
[421470810,1777738261000,-606.18239602,0.00032546,2]
[421470820,1777738261000,-500.0,0.00032547,2]
[421470821,1777738261000,-500.0,0.00032547,2]
[421470811,1777738261000,-606.18239602,0.00032546,2]
[421470813,1777738261000,-606.18239602,0.00032546,2]
[421470814,1777738261000,-606.18239602,0.00032546,2]
[421470812,1777738261000,-606.18239602,0.00032546,2]
[421470817,1777738261000,-161.08747523,0.00032547,2]
[421470818,1777738261000,-500.0,0.00032547,2]
[421470819,1777738261000,-736.97,0.00032547,2]
[421470816,1777738261000,-500.0,0.00032547,2]
[421470815,1777738261000,-606.18239602,0.00032546,2]
[421470824,1777738261000,-500.0,0.00032547,2]
[421470831,1777738261000,-733.4,0.00032547,2]
[421470823,1777738261000,-500.0,0.00032547,2]
[421470833,1777738261000,-500.0,0.00032547,2]
[421470822,1777738261000,-500.0,0.00032547,2]
[421470829,1777738261000,-500.0,0.00032547,2]
[421470825,1777738261000,-500.0,0.00032547,2]
[421470834,1777738261000,-500.0,0.00032547,2]
[421470832,1777738261000,-500.0,0.00032547,2]
[421470827,1777738261000,-500.0,0.00032547,2]
[421470826,1777738261000,-620.55,0.00032547,2]
[421470828,1777738261000,-215.81672578,0.00032547,2]
[421470830,1777738261000,-500.0,0.00032547,2]
[421470836,1777738261000,-740.61,0.00032547,2]
[421470775,1777738261000,-852.88,0.00032493,2]
[421470835,1777738261000,-500.0,0.00032547,2]
[421470806,1777738261000,-500.0,0.00032493,2]
[421470802,1777738261000,-500.0,0.00032493,2]
[421470837,1777738261000,-797.0,0.00032547,2]
[421470805,1777738261000,-500.0,0.00032493,2]
[421470803,1777738261000,-500.0,0.00032493,2]
[421470778,1777738261000,-500.0,0.00032493,2]
[421470780,1777738261000,-285.00488041,0.00032493,2]
[421470774,1777738261000,-500.0,0.00032493,2]
[421470777,1777738261000,-662.84,0.00032493,2]
[421470773,1777738261000,-500.0,0.00032493,2]
[421470779,1777738261000,-500.0,0.00032493,2]
[421470782,1777738261000,-500.0,0.00032493,2]
[421470793,1777738261000,-645.26494564,0.00032493,2]
[421470785,1777738261000,-500.0,0.00032493,2]
[421470788,1777738261000,-3075.01,0.00032493,2]
[421470795,1777738261000,-500.0,0.00032493,2]
[421470792,1777738261000,-644.8,0.00032493,2]
[421470787,1777738261000,-500.0,0.00032493,2]
[421470784,1777738261000,-500.0,0.00032493,2]
[421470791,1777738261000,-500.0,0.00032493,2]
[421470794,1777738261000,-500.0,0.00032493,2]
[421470800,1777738261000,-500.0,0.00032493,2]
[421470799,1777738261000,-799.47,0.00032493,2]
[421470798,1777738261000,-527.59,0.00032493,2]
[421470796,1777738261000,-510.0,0.00032493,2]
[421470807,1777738261000,-500.0,0.00032493,2]
[421470804,1777738261000,-500.0,0.00032493,2]
[421470801,1777738261000,-712.57,0.00032493,2]
[421470808,1777738261000,-606.18239602,0.00032546,2]
[421470790,1777738261000,-642.89112723,0.00032493,2]
[421470789,1777738261000,-714.84,0.00032493,2]
[421470786,1777738261000,-500.0,0.00032493,2]
[421470797,1777738261000,-713.23,0.00032493,2]
[421470875,1777738262000,-658.51,0.00032547,2]
[421470878,1777738262000,-684.42,0.00032547,2]
[421470879,1777738262000,-500.0,0.00032547,2]
[421470882,1777738262000,-395.1442988,0.00032547,2]
[421470877,1777738262000,-666.15,0.00032547,2]
[421470872,1777738262000,-500.0,0.00032547,2]
[421470869,1777738262000,-500.0,0.00032547,2]
[421470871,1777738262000,-724.96,0.00032547,2]
[421470874,1777738262000,-635.28,0.00032547,2]
[421470873,1777738262000,-812.98,0.00032547,2]
[421470881,1777738262000,-500.0,0.00032547,2]
[421470876,1777738262000,-500.0,0.00032547,2]
[421470880,1777738262000,-500.0,0.00032547,2]
[421470892,1777738262000,-728.83,0.00032547,2]
[421470883,1777738262000,-500.0,0.00032547,2]
[421470884,1777738262000,-800.92,0.00032547,2]
[421470887,1777738262000,-500.0,0.00032547,2]
[421470888,1777738262000,-500.0,0.00032547,2]
[421470886,1777738262000,-500.0,0.00032547,2]
[421470890,1777738262000,-500.0,0.00032547,2]
[421470889,1777738262000,-500.0,0.00032547,2]
[421470891,1777738262000,-36411.49,0.00032547,2]
[421470893,1777738262000,-500.0,0.00032547,2]
[421470895,1777738262000,-2792.04,0.00032547,2]
[421470894,1777738262000,-806.17,0.00032547,2]
[421470870,1777738262000,-500.0,0.00032547,2]
[421470896,1777738262000,-439.23436741,0.00032547,2]
[421470885,1777738262000,-753.28,0.00032547,2]
[421470863,1777738262000,-1111.98,0.00032547,2]
[421470849,1777738262000,-500.0,0.00032547,2]
[421470864,1777738262000,-523.44,0.00032547,2]
[421470898,1777738262000,-506.62143459,0.00032547,2]
[421470841,1777738262000,-678.03,0.00032547,2]
[421470838,1777738262000,-500.0,0.00032547,2]
[421470846,1777738262000,-500.0,0.00032547,2]
[421470839,1777738262000,-865.8,0.00032547,2]
[421470843,1777738262000,-500.0,0.00032547,2]
[421470847,1777738262000,-5967.71,0.00032547,2]
[421470840,1777738262000,-500.0,0.00032547,2]
[421470844,1777738262000,-572.34,0.00032547,2]
[421470845,1777738262000,-950.75,0.00032547,2]
[421470842,1777738262000,-500.0,0.00032547,2]
[421470859,1777738262000,-500.0,0.00032547,2]
[421470860,1777738262000,-500.0,0.00032547,2]
[421470868,1777738262000,-500.0,0.00032547,2]
[421470855,1777738262000,-523.64,0.00032547,2]
[421470850,1777738262000,-647.22,0.00032547,2]
[421470861,1777738262000,-519.12,0.00032547,2]
[421470854,1777738262000,-775.96,0.00032547,2]
[421470857,1777738262000,-500.0,0.00032547,2]
[421470851,1777738262000,-506.8045821,0.00032547,2]
[421470853,1777738262000,-500.0,0.00032547,2]
[421470856,1777738262000,-500.0,0.00032547,2]
[421470848,1777738262000,-500.0,0.00032547,2]
[421470852,1777738262000,-500.0,0.00032547,2]
[421470862,1777738262000,-500.0,0.00032547,2]
[421470865,1777738262000,-504.14,0.00032547,2]
[421470866,1777738262000,-500.0,0.00032547,2]
[421470867,1777738262000,-500.0,0.00032547,2]
[421470858,1777738262000,-884.79,0.00032547,2]
[421470907,1777738262000,-537.0,0.00032547,2]
[421470960,1777738262000,-500.0,0.00032547,2]
[421470900,1777738262000,-500.0,0.00032547,2]
[421470930,1777738262000,-151.0,0.00032547,7]
[421470931,1777738262000,-500.0,0.00032547,2]
[421470932,1777738262000,-2059.86,0.00032547,2]
[421470937,1777738262000,-500.0,0.00032547,2]
[421470936,1777738262000,-500.0,0.00032547,2]
[421470938,1777738262000,-12694.74,0.00032547,2]
[421470944,1777738262000,-240.67474094,0.00032547,2]
[421470947,1777738262000,-1599.33,0.00032547,2]
[421470943,1777738262000,-500.0,0.00032547,2]
[421470942,1777738262000,-500.0,0.00032547,2]
[421470939,1777738262000,-693.96,0.00032547,2]
[421470941,1777738262000,-901.46,0.00032547,2]
[421470899,1777738262000,-500.0,0.00032547,2]
[421470927,1777738262000,-500.0,0.00032547,2]
[421470945,1777738262000,-500.0,0.00032547,2]
[421470948,1777738262000,-500.0,0.00032547,2]
[421470949,1777738262000,-500.0,0.00032547,2]
[421470952,1777738262000,-578.19153743,0.00032547,2]
[421470950,1777738262000,-150.1561294,0.00032547,2]
[421470959,1777738262000,-500.0,0.00032547,2]
[421470953,1777738262000,-500.0,0.00032547,2]
[421470957,1777738262000,-500.0,0.00032547,2]
[421470951,1777738262000,-500.0,0.00032547,2]
[421470954,1777738262000,-902.13,0.00032547,2]
[421470955,1777738262000,-603.63,0.00032547,2]
[421470956,1777738262000,-578.54,0.00032547,2]
[421470958,1777738262000,-500.0,0.00032547,2]
[421470961,1777738262000,-500.0,0.00032547,2]
[421470946,1777738262000,-500.0,0.00032547,2]
[421470928,1777738262000,-500.0,0.00032547,2]
[421470940,1777738262000,-500.0,0.00032547,2]
[421470929,1777738262000,-500.0,0.00032547,2]
[421470922,1777738262000,-500.0,0.00032547,2]
[421470908,1777738262000,-3599.4,0.00032547,2]
[421470901,1777738262000,-500.0,0.00032547,2]
[421470897,1777738262000,-500.0,0.00032547,2]
[421470904,1777738262000,-500.0,0.00032547,2]
[421470903,1777738262000,-4576.64,0.00032547,2]
[421470902,1777738262000,-500.0,0.00032547,2]
[421470905,1777738262000,-500.0,0.00032547,2]
[421470921,1777738262000,-500.0,0.00032547,2]
[421470910,1777738262000,-880.44,0.00032547,2]
[421470920,1777738262000,-500.0,0.00032547,2]
[421470916,1777738262000,-500.0,0.00032547,2]
[421470909,1777738262000,-500.0,0.00032547,2]
[421470917,1777738262000,-500.0,0.00032547,2]
[421470906,1777738262000,-920.07,0.00032547,2]
[421470914,1777738262000,-500.0,0.00032547,2]
[421470913,1777738262000,-513.6457707,0.00032547,2]
[421470935,1777738262000,-500.0,0.00032547,2]
[421470934,1777738262000,-500.0,0.00032547,2]
[421470924,1777738262000,-500.0,0.00032547,2]
[421470925,1777738262000,-151.0,0.00032547,7]
[421470933,1777738262000,-500.0,0.00032547,2]
[421470926,1777738262000,-500.0,0.00032547,2]
[421470918,1777738262000,-500.0,0.00032547,2]
[421470919,1777738262000,-151.0,0.00032547,7]
[421470911,1777738262000,-1197.94,0.00032547,2]
[421470915,1777738262000,-500.0,0.00032547,2]
[421470912,1777738262000,-19976.45,0.00032547,2]
[421470923,1777738262000,-500.0,0.00032547,2]
[421471005,1777738263000,-500.0,0.00032547,2]
[421471000,1777738263000,-500.0,0.00032547,2]
[421471001,1777738263000,-500.0,0.00032547,2]
[421471010,1777738263000,-500.0,0.00032547,2]
[421471002,1777738263000,-800.53,0.00032547,2]
[421470993,1777738263000,-500.0,0.00032547,2]
[421470995,1777738263000,-500.0,0.00032547,2]